[Event "*** Titled Tuesday 3|2 Blitz"]
[Site "Chess.com"]
[Date "2015.03.03"]
[Round "6"]
[White "GeorgMeier"]
[Black "Fandorine"]
[Result "1-0"]
[WhiteElo "2739"]
[BlackElo "2564"]
[TimeControl "180+2"]
[EndTime "12:15:31 PST"]
[Termination "GeorgMeier won by resignation"]

1. Nf3 {[%clk 0:03:00]} 1... g6 {[%clk 0:02:57.9]} 2. g3 {[%clk 0:03:00.4]} 2...
Bg7 {[%clk 0:02:59.4]} 3. d4 {[%clk 0:03:02]} 3... d6 {[%clk 0:03:00.3]} 4. Bg2
{[%clk 0:03:03.2]} 4... Nf6 {[%clk 0:03:02]} 5. O-O {[%clk 0:03:04.6]} 5... O-O
{[%clk 0:03:03.8]} 6. b3 {[%clk 0:03:06]} 6... e5 {[%clk 0:02:57.1]} 7. dxe5
{[%clk 0:03:06]} 7... Ng4 {[%clk 0:02:58.7]} 8. Bg5 {[%clk 0:03:07.2]} 8... Qe8
{[%clk 0:02:56.2]} 9. Nc3 {[%clk 0:03:08.4]} 9... Nxe5 {[%clk 0:02:51.9]} 10.
Nd5 {[%clk 0:03:09.2]} 10... Nxf3+ {[%clk 0:01:49.3]} 11. exf3 {[%clk
0:02:56.1]} 11... Na6 {[%clk 0:01:06.1]} 12. Qd2 {[%clk 0:02:27.9]} 12... f6
{[%clk 0:00:54.8]} 13. Rfe1 {[%clk 0:02:21.1]} 13... Be6 {[%clk 0:00:47.7]} 14.
Nf4 {[%clk 0:01:11.7]} 14... fxg5 {[%clk 0:00:46.6]} 15. Nxe6 {[%clk 0:01:12.6]}
15... Bxa1 {[%clk 0:00:33.6]} 16. Nxf8 {[%clk 0:01:13.1]} 16... Qxf8 {[%clk
0:00:13.2]} 17. Rxa1 {[%clk 0:01:13.2]} 17... c6 {[%clk 0:00:14.8]} 18. Qxg5
{[%clk 0:01:08.3]} 18... Re8 {[%clk 0:00:16.5]} 19. Qd2 {[%clk 0:01:07.1]} 19...
d5 {[%clk 0:00:14.4]} 20. Re1 {[%clk 0:01:00.1]} 20... Rxe1+ {[%clk 0:00:11.2]}
21. Qxe1 {[%clk 0:01:02]} 21... Kf7 {[%clk 0:00:12.8]} 22. Qd2 {[%clk
0:00:57.7]} 22... Qg7 {[%clk 0:00:12.2]} 23. c3 {[%clk 0:00:58.1]} 23... Qe5
{[%clk 0:00:13.4]} 24. f4 {[%clk 0:00:58.6]} 24... Qe7 {[%clk 0:00:14.7]} 25.
Bf3 {[%clk 0:00:58.4]} 25... Qf6 {[%clk 0:00:11.6]} 26. Qe3 {[%clk 0:00:55.9]}
26... b6 {[%clk 0:00:08.4]} 27. Kg2 {[%clk 0:00:50]} 27... Nc7 {[%clk
0:00:09.1]} 28. Bg4 {[%clk 0:00:36.4]} 28... h5 {[%clk 0:00:07.3]} 29. Be2
{[%clk 0:00:30.5]} 29... Qe6 {[%clk 0:00:05.4]} 30. Bd3 {[%clk 0:00:26.4]} 30...
Qxe3 {[%clk 0:00:06.2]} 31. fxe3 {[%clk 0:00:28.3]} 31... c5 {[%clk 0:00:07.8]}
32. c4 {[%clk 0:00:26.4]} 32... dxc4 {[%clk 0:00:03.7]} 33. bxc4 {[%clk
0:00:22.7]} 33... Kf6 {[%clk 0:00:05.2]} 34. e4 {[%clk 0:00:20.3]} 34... Ne6
{[%clk 0:00:06.4]} 35. e5+ {[%clk 0:00:21.4]} 35... Kg7 {[%clk 0:00:08]} 36. Kf3
{[%clk 0:00:22.7]} 36... Nd4+ {[%clk 0:00:07.9]} 37. Ke4 {[%clk 0:00:24.1]}
37... Kf7 {[%clk 0:00:09.2]} 38. Kd5 {[%clk 0:00:17.2]} 38... Nf3 {[%clk
0:00:06.9]} 39. Kd6 {[%clk 0:00:17.3]} 39... Nxh2 {[%clk 0:00:05.3]} 40. e6+
{[%clk 0:00:18.1]} 40... Kg7 {[%clk 0:00:03.9]} 41. e7 {[%clk 0:00:19]} 1-0

[Event "*** Titled Tuesday 3|2 Blitz"]
[Site "Chess.com"]
[Date "2015.03.03"]
[Round "6"]
[White "SuPeR_Fm"]
[Black "FabianEnglert"]
[Result "0-1"]
[WhiteElo "2346"]
[BlackElo "2249"]
[TimeControl "180+2"]
[EndTime "12:15:44 PST"]
[Termination "FabianEnglert won by resignation"]

1. e4 {[%clk 0:03:00]} 1... c5 {[%clk 0:02:58.6]} 2. Nf3 {[%clk 0:03:00.5]} 2...
e6 {[%clk 0:02:59.9]} 3. d4 {[%clk 0:02:59.1]} 3... cxd4 {[%clk 0:03:01.8]} 4.
Nxd4 {[%clk 0:03:00]} 4... a6 {[%clk 0:03:03.3]} 5. Nc3 {[%clk 0:03:01.1]} 5...
Qc7 {[%clk 0:03:04]} 6. f4 {[%clk 0:02:56.8]} 6... b5 {[%clk 0:03:02.9]} 7. Bd3
{[%clk 0:02:57]} 7... Bb7 {[%clk 0:03:02.2]} 8. Qe2 {[%clk 0:02:51.4]} 8... Bc5
{[%clk 0:03:00]} 9. Nb3 {[%clk 0:02:51.8]} 9... Be7 {[%clk 0:03:00.9]} 10. Bd2
{[%clk 0:02:51.4]} 10... d6 {[%clk 0:02:59.3]} 11. O-O {[%clk 0:02:52.9]} 11...
Nd7 {[%clk 0:02:59.8]} 12. Rae1 {[%clk 0:02:54.4]} 12... Ngf6 {[%clk 0:02:51.3]}
13. Kh1 {[%clk 0:02:53.4]} 13... O-O {[%clk 0:02:49.7]} 14. e5 {[%clk
0:02:52.5]} 14... Nd5 {[%clk 0:02:50.3]} 15. Rf3 {[%clk 0:02:36.7]} 15... g6
{[%clk 0:02:25.5]} 16. Rh3 {[%clk 0:02:26.7]} 16... Rfe8 {[%clk 0:02:07.8]} 17.
Nxd5 {[%clk 0:02:16.9]} 17... Bxd5 {[%clk 0:02:07.9]} 18. Bc3 {[%clk 0:02:17.1]}
18... Nf8 {[%clk 0:01:25]} 19. Qg4 {[%clk 0:02:09.3]} 19... Qb7 {[%clk 0:01:18]}
20. f5 {[%clk 0:02:01.4]} 20... exf5 {[%clk 0:01:12.1]} 21. Bxf5 {[%clk
0:02:01.3]} 21... Bxg2+ {[%clk 0:01:10.1]} 22. Qxg2 {[%clk 0:02:01.5]} 22...
Qxg2+ {[%clk 0:01:12]} 23. Kxg2 {[%clk 0:02:01.6]} 23... gxf5 {[%clk 0:01:13.7]}
24. Nd4 {[%clk 0:01:44.9]} 24... Ng6 {[%clk 0:01:06.3]} 25. Rg3 {[%clk
0:01:31.9]} 25... f4 {[%clk 0:01:05.6]} 26. Rg4 {[%clk 0:01:28.2]} 26... h5
{[%clk 0:01:00.4]} 27. Rxg6+ {[%clk 0:01:28.8]} 27... fxg6 {[%clk 0:01:01.8]}
28. e6 {[%clk 0:01:26.3]} 28... Bf6 {[%clk 0:00:57.7]} 29. a3 {[%clk 0:01:23.1]}
29... Rac8 {[%clk 0:00:51.9]} 30. Kf3 {[%clk 0:01:18.8]} 30... Rc4 {[%clk
0:00:45.4]} 31. Ne2 {[%clk 0:01:10.1]} 31... Rxe6 {[%clk 0:00:40.1]} 32. Bxf6
{[%clk 0:01:08.8]} 32... Rxf6 {[%clk 0:00:42]} 33. c3 {[%clk 0:01:10.6]} 33...
g5 {[%clk 0:00:40.7]} 34. h3 {[%clk 0:01:10.6]} 34... Rg6 {[%clk 0:00:41.8]} 35.
Nd4 {[%clk 0:01:07.3]} 35... Rc8 {[%clk 0:00:36]} 36. Nf5 {[%clk 0:01:02.2]}
36... g4+ {[%clk 0:00:27.4]} 37. Kxf4 {[%clk 0:01:02.4]} 37... Rf8 {[%clk
0:00:27]} 38. Rg1 {[%clk 0:00:42.7]} 38... g3 {[%clk 0:00:21.8]} 39. Ke4 {[%clk
0:00:37.7]} 39... Re6+ {[%clk 0:00:19]} 40. Kf4 {[%clk 0:00:39.3]} 40... h4
{[%clk 0:00:20]} 41. Kg4 {[%clk 0:00:32.9]} 41... Re4+ {[%clk 0:00:21.1]} 42.
Kg5 {[%clk 0:00:34.3]} 42... Re5 {[%clk 0:00:22.6]} 0-1

[Event "*** Titled Tuesday 3|2 Blitz"]
[Site "Chess.com"]
[Date "2015.03.03"]
[Round "6"]
[White "GGuseinov"]
[Black "megarompa"]
[Result "0-1"]
[WhiteElo "2548"]
[BlackElo "2661"]
[TimeControl "180+2"]
[EndTime "12:16:03 PST"]
[Termination "megarompa won by resignation"]

1. e4 {[%clk 0:02:54.5]} 1... c5 {[%clk 0:02:56.2]} 2. Nf3 {[%clk 0:02:53.3]}
2... e6 {[%clk 0:02:57.8]} 3. d4 {[%clk 0:02:54.2]} 3... cxd4 {[%clk 0:02:58.9]}
4. Nxd4 {[%clk 0:02:56]} 4... Nf6 {[%clk 0:02:59]} 5. Nc3 {[%clk 0:02:56.6]}
5... Nc6 {[%clk 0:03:00.5]} 6. Nxc6 {[%clk 0:02:53.6]} 6... bxc6 {[%clk
0:02:59.8]} 7. e5 {[%clk 0:02:54.9]} 7... Nd5 {[%clk 0:02:58.4]} 8. Ne4 {[%clk
0:02:55.9]} 8... Qc7 {[%clk 0:02:58.9]} 9. f4 {[%clk 0:02:56]} 9... Qb6 {[%clk
0:02:58.1]} 10. c4 {[%clk 0:02:54.8]} 10... Ne3 {[%clk 0:02:52]} 11. Qd3 {[%clk
0:02:54.9]} 11... Bb4+ {[%clk 0:02:49.5]} 12. Bd2 {[%clk 0:02:51.3]} 12... Rb8
{[%clk 0:02:30.6]} 13. b3 {[%clk 0:02:51]} 13... O-O {[%clk 0:02:31.1]} 14. Bxb4
{[%clk 0:02:30.2]} 14... Qxb4+ {[%clk 0:02:28.3]} 15. Ke2 {[%clk 0:02:31.3]}
15... Nf5 {[%clk 0:02:25.1]} 16. g4 {[%clk 0:02:24.8]} 16... Nh4 {[%clk
0:02:25.4]} 17. g5 {[%clk 0:02:14.7]} 17... c5 {[%clk 0:02:24]} 18. Rg1 {[%clk
0:02:06]} 18... Bb7 {[%clk 0:02:16]} 19. Nf6+ {[%clk 0:02:02.6]} 19... gxf6
{[%clk 0:02:12.1]} 20. gxf6+ {[%clk 0:02:04.2]} 20... Kh8 {[%clk 0:02:13.8]} 21.
Rg7 {[%clk 0:02:05]} 21... Bf3+ {[%clk 0:01:51.2]} 22. Kf2 {[%clk 0:01:53.2]}
22... Nf5 {[%clk 0:01:52.1]} 23. Qxf3 {[%clk 0:01:39.6]} 23... Nxg7 {[%clk
0:01:42.3]} 24. fxg7+ {[%clk 0:01:41.5]} 24... Kxg7 {[%clk 0:01:44.2]} 25. Rd1
{[%clk 0:01:31.3]} 25... Qa5 {[%clk 0:01:31]} 26. Rxd7 {[%clk 0:01:17.6]} 26...
Rfd8 {[%clk 0:01:27]} 27. Rxd8 {[%clk 0:00:20.9]} 27... Rxd8 {[%clk 0:01:23.1]}
28. Qg4+ {[%clk 0:00:22.1]} 28... Kf8 {[%clk 0:01:21]} 29. Qg5 {[%clk
0:00:23.4]} 29... Qxa2+ {[%clk 0:01:18.9]} 30. Kg1 {[%clk 0:00:22.1]} 30... Qd2
{[%clk 0:01:17.6]} 31. Qh6+ {[%clk 0:00:20.5]} 31... Kg8 {[%clk 0:01:10.6]} 32.
Qg5+ {[%clk 0:00:19.4]} 32... Kf8 {[%clk 0:01:12.5]} 33. Qh6+ {[%clk 0:00:20.6]}
33... Ke8 {[%clk 0:01:11.5]} 34. h3 {[%clk 0:00:11.9]} 34... Qe3+ {[%clk
0:01:10]} 35. Kh1 {[%clk 0:00:13.1]} 35... Rd2 {[%clk 0:01:03.4]} 36. Qh5 {[%clk
0:00:11.2]} 36... Qxf4 {[%clk 0:00:58]} 37. Bg2 {[%clk 0:00:11]} 37... Rc2
{[%clk 0:00:55.3]} 38. Bc6+ {[%clk 0:00:09.2]} 38... Kd8 {[%clk 0:00:56]} 39.
Qd1+ {[%clk 0:00:09.6]} 39... Rd2 {[%clk 0:00:55.9]} 40. Qg1 {[%clk 0:00:09.4]}
40... Qxe5 {[%clk 0:00:45]} 41. Qg8+ {[%clk 0:00:08.1]} 41... Kc7 {[%clk
0:00:43.1]} 42. Qxf7+ {[%clk 0:00:09.2]} 42... Kxc6 {[%clk 0:00:44.3]} 43. Qe8+
{[%clk 0:00:10.4]} 43... Rd7 {[%clk 0:00:45.8]} 44. Qa8+ {[%clk 0:00:09.9]}
44... Kc7 {[%clk 0:00:37.5]} 45. Qxa7+ {[%clk 0:00:09]} 45... Kd8 {[%clk
0:00:38.5]} 46. Qa8+ {[%clk 0:00:05.8]} 46... Ke7 {[%clk 0:00:39.1]} 47. Qf3
{[%clk 0:00:07.3]} 47... Qa1+ {[%clk 0:00:38.4]} 48. Kh2 {[%clk 0:00:07.8]}
48... Qb2+ {[%clk 0:00:39.8]} 49. Kg3 {[%clk 0:00:09.2]} 49... Qe5+ {[%clk
0:00:39.7]} 50. Kg2 {[%clk 0:00:08.9]} 50... Rd2+ {[%clk 0:00:40.4]} 51. Kf1
{[%clk 0:00:10]} 51... Qa1+ {[%clk 0:00:40.6]} 0-1

[Event "*** Titled Tuesday 3|2 Blitz"]
[Site "Chess.com"]
[Date "2015.03.03"]
[Round "6"]
[White "Hafez_Bakr"]
[Black "Polemistis"]
[Result "0-1"]
[WhiteElo "1813"]
[BlackElo "1485"]
[TimeControl "180+2"]
[EndTime "12:16:08 PST"]
[Termination "Polemistis won on time"]

1. e4 {[%clk 0:02:37]} 1... c6 {[%clk 0:02:58]} 2. d4 {[%clk 0:02:35.9]} 2... d5
{[%clk 0:02:58.6]} 3. Nc3 {[%clk 0:02:37.8]} 3... dxe4 {[%clk 0:02:59.5]} 4.
Nxe4 {[%clk 0:02:38.2]} 4... Bf5 {[%clk 0:03:01.2]} 5. Ng3 {[%clk 0:02:38.7]}
5... Bg6 {[%clk 0:03:02.9]} 6. h4 {[%clk 0:02:39.3]} 6... h6 {[%clk 0:03:02]} 7.
h5 {[%clk 0:02:38.7]} 7... Bh7 {[%clk 0:03:03]} 8. Nf3 {[%clk 0:02:31.9]} 8...
Nd7 {[%clk 0:03:03.8]} 9. Bf4 {[%clk 0:02:27.7]} 9... e6 {[%clk 0:03:03.2]} 10.
c3 {[%clk 0:02:28.1]} 10... Ngf6 {[%clk 0:03:03.4]} 11. Bd3 {[%clk 0:02:27.7]}
11... Bxd3 {[%clk 0:03:02.1]} 12. Qxd3 {[%clk 0:02:28.6]} 12... Be7 {[%clk
0:03:03.4]} 13. O-O-O {[%clk 0:02:28.9]} 13... O-O {[%clk 0:03:02.2]} 14. Be5
{[%clk 0:02:26.8]} 14... Nd5 {[%clk 0:02:50.8]} 15. c4 {[%clk 0:02:04.4]} 15...
Nb4 {[%clk 0:02:46.4]} 16. Qb1 {[%clk 0:02:02.5]} 16... Qa5 {[%clk 0:02:30.9]}
17. a3 {[%clk 0:02:02.5]} 17... Na6 {[%clk 0:02:28]} 18. Bf4 {[%clk 0:01:56]}
18... c5 {[%clk 0:02:20.9]} 19. Bd2 {[%clk 0:01:53.5]} 19... Qc7 {[%clk
0:02:19.6]} 20. Qe4 {[%clk 0:01:49.1]} 20... cxd4 {[%clk 0:02:18.1]} 21. Qxd4
{[%clk 0:01:49.5]} 21... Bf6 {[%clk 0:02:17.3]} 22. Qd3 {[%clk 0:01:49.6]} 22...
Ndc5 {[%clk 0:02:17.8]} 23. Qc2 {[%clk 0:01:49.5]} 23... Nb8 {[%clk 0:02:12]}
24. Kb1 {[%clk 0:01:48.7]} 24... Nc6 {[%clk 0:02:12.1]} 25. Ne4 {[%clk
0:01:40.2]} 25... Nxe4 {[%clk 0:02:10]} 26. Qxe4 {[%clk 0:01:40.2]} 26... Qb6
{[%clk 0:02:09.1]} 27. Qc2 {[%clk 0:01:27.4]} 27... Nd4 {[%clk 0:02:07.7]} 28.
Nxd4 {[%clk 0:01:27]} 28... Bxd4 {[%clk 0:02:08.8]} 29. f4 {[%clk 0:01:21.6]}
29... Rfd8 {[%clk 0:02:06.7]} 30. g4 {[%clk 0:01:21.1]} 30... Rac8 {[%clk
0:02:06.1]} 31. b4 {[%clk 0:01:15.4]} 31... a5 {[%clk 0:02:02.8]} 32. Ka2 {[%clk
0:01:13.8]} 32... axb4 {[%clk 0:02:03.2]} 33. Bxb4 {[%clk 0:01:14.2]} 33... Qc6
{[%clk 0:01:51]} 34. Rc1 {[%clk 0:01:08.7]} 34... Be3 {[%clk 0:01:48.5]} 35.
Rce1 {[%clk 0:01:08.8]} 35... Bxf4 {[%clk 0:01:44.7]} 36. Re4 {[%clk 0:01:07.9]}
36... b5 {[%clk 0:01:33.4]} 37. Rf1 {[%clk 0:01:03]} 37... Bg5 {[%clk
0:01:30.8]} 38. c5 {[%clk 0:00:59]} 38... Rd5 {[%clk 0:01:26.2]} 39. Rfe1 {[%clk
0:00:57.5]} 39... Rcd8 {[%clk 0:01:25.4]} 40. R4e2 {[%clk 0:00:56.8]} 40... Rd4
{[%clk 0:01:23.7]} 41. Rg1 {[%clk 0:00:50.2]} 41... Qd5+ {[%clk 0:01:22.5]} 42.
Kb2 {[%clk 0:00:43.5]} 42... Bf6 {[%clk 0:01:22.6]} 43. Bc3 {[%clk 0:00:44.4]}
43... Rc4 {[%clk 0:01:22.3]} 44. Rg3 {[%clk 0:00:34]} 44... Bxc3+ {[%clk
0:01:18.2]} 45. Rxc3 {[%clk 0:00:34]} 45... Qd4 {[%clk 0:01:16.2]} 46. Kb3
{[%clk 0:00:34.5]} 46... Ra4 {[%clk 0:01:06.1]} 47. Ree3 {[%clk 0:00:26.9]}
47... Rda8 {[%clk 0:00:59]} 48. Ka2 {[%clk 0:00:22.5]} 48... b4 {[%clk
0:00:54.8]} 49. Rcd3 {[%clk 0:00:11.6]} 49... Qxg4 {[%clk 0:00:42.3]} 50. Rg3
{[%clk 0:00:07.1]} 50... Qf4 {[%clk 0:00:40.1]} 51. c6 {[%clk 0:00:07.2]} 51...
Qc7 {[%clk 0:00:33.3]} 0-1

[Event "*** Titled Tuesday 3|2 Blitz"]
[Site "Chess.com"]
[Date "2015.03.03"]
[Round "6"]
[White "kesarev"]
[Black "DanielRensch"]
[Result "1/2-1/2"]
[WhiteElo "2226"]
[BlackElo "2254"]
[TimeControl "180+2"]
[EndTime "12:16:23 PST"]
[Termination "Game drawn by agreement"]

1. Nf3 {[%clk 0:03:00]} 1... Nf6 {[%clk 0:02:57.7]} 2. c4 {[%clk 0:03:00.4]}
2... e6 {[%clk 0:02:56.5]} 3. g3 {[%clk 0:03:00.9]} 3... b6 {[%clk 0:02:54.5]}
4. Bg2 {[%clk 0:03:01.6]} 4... Bb7 {[%clk 0:02:56.4]} 5. O-O {[%clk 0:03:02.3]}
5... Be7 {[%clk 0:02:57.7]} 6. Nc3 {[%clk 0:03:02.7]} 6... c5 {[%clk 0:02:58.3]}
7. d4 {[%clk 0:03:03.7]} 7... cxd4 {[%clk 0:02:58.7]} 8. Qxd4 {[%clk 0:03:05.6]}
8... d6 {[%clk 0:02:42.5]} 9. Bg5 {[%clk 0:03:00.9]} 9... O-O {[%clk 0:02:42.1]}
10. Bxf6 {[%clk 0:03:01.4]} 10... Bxf6 {[%clk 0:02:42.8]} 11. Qd3 {[%clk
0:03:02.6]} 11... a6 {[%clk 0:02:24.2]} 12. Rfd1 {[%clk 0:02:53.6]} 12... Be7
{[%clk 0:02:25]} 13. Ng5 {[%clk 0:02:52.2]} 13... Bxg5 {[%clk 0:02:23.3]} 14.
Bxb7 {[%clk 0:02:53.7]} 14... Ra7 {[%clk 0:02:24.3]} 15. Bg2 {[%clk 0:02:55.2]}
15... Be7 {[%clk 0:02:22.6]} 16. f4 {[%clk 0:02:50.4]} 16... Nd7 {[%clk
0:02:21.5]} 17. f5 {[%clk 0:02:50.4]} 17... Ne5 {[%clk 0:02:20]} 18. Qe4 {[%clk
0:02:43.9]} 18... exf5 {[%clk 0:02:09.6]} 19. Qxf5 {[%clk 0:02:16.1]} 19... Nxc4
{[%clk 0:02:09.2]} 20. Nd5 {[%clk 0:02:11]} 20... Bg5 {[%clk 0:01:43.5]} 21. h4
{[%clk 0:01:54.4]} 21... Be3+ {[%clk 0:01:20.2]} 22. Kh2 {[%clk 0:01:47.8]}
22... Bh6 {[%clk 0:01:08]} 23. b3 {[%clk 0:01:09.2]} 23... Ne5 {[%clk
0:01:05.5]} 24. Rf1 {[%clk 0:01:04.8]} 24... g6 {[%clk 0:00:53.1]} 25. Qc2
{[%clk 0:00:59.7]} 25... Bg7 {[%clk 0:00:46.1]} 26. Kh1 {[%clk 0:00:54.9]} 26...
b5 {[%clk 0:00:32.4]} 27. a4 {[%clk 0:00:51]} 27... bxa4 {[%clk 0:00:32.4]} 28.
Rxa4 {[%clk 0:00:51.6]} 28... a5 {[%clk 0:00:33.4]} 29. Rfa1 {[%clk 0:00:45.4]}
29... h5 {[%clk 0:00:25.8]} 30. R1a2 {[%clk 0:00:42.7]} 30... Ng4 {[%clk
0:00:24.3]} 31. Bf3 {[%clk 0:00:39.9]} 31... Nf6 {[%clk 0:00:22.2]} 32. Qd2
{[%clk 0:00:35.5]} 32... Nxd5 {[%clk 0:00:19]} 33. Bxd5 {[%clk 0:00:36.4]} 33...
Be5 {[%clk 0:00:15.3]} 34. Kg2 {[%clk 0:00:33.6]} 34... Kg7 {[%clk 0:00:13.6]}
35. Rxa5 {[%clk 0:00:32.8]} 35... Rxa5 {[%clk 0:00:14.8]} 36. Rxa5 {[%clk
0:00:32]} 36... Qb6 {[%clk 0:00:12.4]} 37. Ra4 {[%clk 0:00:26.7]} 37... Qc5
{[%clk 0:00:09.9]} 38. Rc4 {[%clk 0:00:25.9]} 38... Qa3 {[%clk 0:00:10.7]} 39.
Rc7 {[%clk 0:00:23.6]} 39... Qa6 {[%clk 0:00:03.8]} 40. Qd3 {[%clk 0:00:16.9]}
40... Qb6 {[%clk 0:00:03.2]} 41. Rb7 {[%clk 0:00:16.8]} 41... Qa5 {[%clk
0:00:03.9]} 42. Bc4 {[%clk 0:00:15.5]} 42... Qe1 {[%clk 0:00:04.2]} 43. Qf3
{[%clk 0:00:16.2]} 43... Kh6 {[%clk 0:00:03]} 44. Rxf7 {[%clk 0:00:15]} 44...
Rxf7 {[%clk 0:00:04.1]} 45. Bxf7 {[%clk 0:00:16]} 45... Qd2 {[%clk 0:00:04.7]}
46. Bc4 {[%clk 0:00:16.5]} 46... Bd4 {[%clk 0:00:05.7]} 47. Qf8+ {[%clk
0:00:14.8]} 47... Bg7 {[%clk 0:00:06]} 48. Qf3 {[%clk 0:00:14.5]} 48... Bd4
{[%clk 0:00:06]} 49. Qe4 {[%clk 0:00:15.7]} 49... Qe3 {[%clk 0:00:04.7]} 50.
Qxe3+ {[%clk 0:00:12.2]} 50... Bxe3 {[%clk 0:00:06]} 51. Kf3 {[%clk 0:00:13.9]}
51... Bc5 {[%clk 0:00:07.5]} 52. g4 {[%clk 0:00:14.2]} 52... g5 {[%clk
0:00:07.6]} 53. hxg5+ {[%clk 0:00:14.8]} 53... Kxg5 {[%clk 0:00:09.5]} 54. gxh5
{[%clk 0:00:15.6]} 54... Kxh5 {[%clk 0:00:11.4]} 55. Ke4 {[%clk 0:00:16.9]}
55... Kg5 {[%clk 0:00:10.9]} 1/2-1/2

[Event "*** Titled Tuesday 3|2 Blitz"]
[Site "Chess.com"]
[Date "2015.03.03"]
[Round "6"]
[White "Chesseducation4u"]
[Black "jcibarra"]
[Result "1/2-1/2"]
[WhiteElo "2333"]
[BlackElo "2524"]
[TimeControl "180+2"]
[EndTime "12:16:28 PST"]
[Termination "Game drawn by repetition"]

1. Nf3 {[%clk 0:02:57]} 1... Nf6 {[%clk 0:02:58.8]} 2. g3 {[%clk 0:02:58.4]}
2... g6 {[%clk 0:02:59.8]} 3. b3 {[%clk 0:02:59.5]} 3... Bg7 {[%clk 0:03:01.1]}
4. Bb2 {[%clk 0:03:01.4]} 4... O-O {[%clk 0:03:02.7]} 5. Bg2 {[%clk 0:03:02.9]}
5... c5 {[%clk 0:03:03.3]} 6. O-O {[%clk 0:03:02.8]} 6... Nc6 {[%clk 0:03:04.3]}
7. c4 {[%clk 0:03:03.8]} 7... d5 {[%clk 0:02:57.6]} 8. cxd5 {[%clk 0:03:05.7]}
8... Qxd5 {[%clk 0:02:55.4]} 9. Ne5 {[%clk 0:03:05.6]} 9... Qd6 {[%clk
0:02:50.6]} 10. Nxc6 {[%clk 0:03:05.8]} 10... bxc6 {[%clk 0:02:51.7]} 11. Na3
{[%clk 0:03:07.7]} 11... Be6 {[%clk 0:02:43]} 12. Qc2 {[%clk 0:03:04.7]} 12...
a5 {[%clk 0:02:42.3]} 13. d3 {[%clk 0:02:54.5]} 13... a4 {[%clk 0:02:40.2]} 14.
bxa4 {[%clk 0:02:48]} 14... Rfb8 {[%clk 0:02:37.5]} 15. Bc3 {[%clk 0:02:38.2]}
15... h5 {[%clk 0:02:13.7]} 16. Rab1 {[%clk 0:02:37.2]} 16... Rxb1 {[%clk
0:02:07.7]} 17. Rxb1 {[%clk 0:02:36.9]} 17... h4 {[%clk 0:02:09.6]} 18. Nc4
{[%clk 0:02:21.8]} 18... Bxc4 {[%clk 0:01:49.2]} 19. dxc4 {[%clk 0:02:23.7]}
19... hxg3 {[%clk 0:01:50.4]} 20. hxg3 {[%clk 0:02:25.6]} 20... Qe6 {[%clk
0:01:48.3]} 21. Bxf6 {[%clk 0:02:16.5]} 21... Qxf6 {[%clk 0:01:37.8]} 22. Rb6
{[%clk 0:02:18.4]} 22... Qa1+ {[%clk 0:01:35.3]} 23. Kh2 {[%clk 0:02:18.6]}
23... Bd4 {[%clk 0:01:15.5]} 24. e3 {[%clk 0:02:13.1]} 24... Kg7 {[%clk
0:01:15.6]} 25. Rb1 {[%clk 0:02:05.2]} 25... Rh8+ {[%clk 0:01:13]} 26. Bh3
{[%clk 0:02:05.5]} 26... Qc3 {[%clk 0:01:13.5]} 27. Qxc3 {[%clk 0:02:06.4]}
27... Bxc3 {[%clk 0:01:15.4]} 28. Rc1 {[%clk 0:01:01.1]} 28... Bb4 {[%clk
0:01:09.5]} 29. Rc2 {[%clk 0:01:01.3]} 29... e6 {[%clk 0:01:06.7]} 30. g4 {[%clk
0:00:52]} 30... Kf6 {[%clk 0:01:04.6]} 31. Kg3 {[%clk 0:00:51.6]} 31... Ke7
{[%clk 0:01:04.1]} 32. Bg2 {[%clk 0:00:49.5]} 32... Kd6 {[%clk 0:01:05.3]} 33.
a3 {[%clk 0:00:35.2]} 33... Ba5 {[%clk 0:00:51.2]} 34. Rb2 {[%clk 0:00:34.7]}
34... Kc7 {[%clk 0:00:52.4]} 35. g5 {[%clk 0:00:32.6]} 35... Rd8 {[%clk
0:00:52.7]} 36. Rb3 {[%clk 0:00:25.9]} 36... Rd2 {[%clk 0:00:51.4]} 37. Bf1
{[%clk 0:00:23.2]} 37... Ra2 {[%clk 0:00:48.9]} 38. f4 {[%clk 0:00:24.2]} 38...
Be1+ {[%clk 0:00:48.9]} 39. Kg4 {[%clk 0:00:25.4]} 39... Bd2 {[%clk 0:00:45.6]}
40. Kf3 {[%clk 0:00:21.8]} 40... Bc1 {[%clk 0:00:42.1]} 41. a5 {[%clk
0:00:20.9]} 41... Bxa3 {[%clk 0:00:43.3]} 42. a6 {[%clk 0:00:21.2]} 42... Bb4
{[%clk 0:00:44.7]} 43. Rd3 {[%clk 0:00:20.7]} 43... Rxa6 {[%clk 0:00:45.6]} 44.
e4 {[%clk 0:00:22]} 44... Ra1 {[%clk 0:00:46.2]} 45. Bh3 {[%clk 0:00:21.6]}
45... Rc1 {[%clk 0:00:43.7]} 46. f5 {[%clk 0:00:22.7]} 46... exf5 {[%clk
0:00:41.4]} 47. exf5 {[%clk 0:00:24.6]} 47... Rxc4 {[%clk 0:00:39.8]} 48. Rd7+
{[%clk 0:00:21.3]} 48... Kb6 {[%clk 0:00:26.3]} 49. Rxf7 {[%clk 0:00:23.2]}
49... gxf5 {[%clk 0:00:25.8]} 50. g6 {[%clk 0:00:24.3]} 50... Rc3+ {[%clk
0:00:21.2]} 51. Kg2 {[%clk 0:00:21.6]} 51... Rc2+ {[%clk 0:00:22.2]} 52. Kf3
{[%clk 0:00:22.8]} 52... Rc3+ {[%clk 0:00:19.4]} 53. Kg2 {[%clk 0:00:23.8]}
53... Rc2+ {[%clk 0:00:20.9]} 54. Kf3 {[%clk 0:00:23.8]} 54... Rc3+ {[%clk
0:00:19.4]} 1/2-1/2